bitfinex/quotes_SOLUSD_20250219
["timestamp","ask_amount","ask_price","bid_price","bid_amount"]
[1739937552746,21.23986689,167.82,167.72,1.5172]
[1739937552948,7.82801836,167.75,167.72,1.5172]
[1739937553763,7.82801836,167.74,167.7,0.063]
[1739937554773,7.82801836,167.74,167.72,0.063]
[1739937555264,7.82801836,167.75,167.72,0.063]
[1739937556753,7.82801836,167.73,167.72,0.063]
[1739937557640,7.82801836,167.74,167.72,0.063]
[1739937559677,82.7,167.76,167.72,0.063]
[1739937559970,7.82801836,167.75,167.72,0.063]
[1739937560771,82.7,167.76,167.72,0.063]
[1739937560977,12.34801836,167.79,167.73,7.82801836]
[1739937561154,12.34801836,167.79,167.73,13.84781836]
[1739937561464,4.52,167.79,167.74,1.6135]
[1739937561851,19.53834853,167.84,167.74,1.6135]
[1739937561852,7.82801836,167.81,167.74,9.44151836]
[1739937562170,7.82801836,167.81,167.77,20.0]
[1739937562774,7.82801836,167.81,167.75,7.82801836]
[1739937563469,87.22,167.82,167.74,9.44151836]
[1739937563470,7.82801836,167.8,167.74,9.44151836]
[1739937563677,7.82801836,167.8,167.74,1.6135]
[1739937563978,7.82801836,167.77,167.74,1.6135]
[1739937564275,7.82801836,167.77,167.73,6.0198]
[1739937564668,7.82801836,167.76,167.72,0.063]
[1739937565175,7.82801836,167.76,167.72,20.063]
[1739937565350,7.82801836,167.75,167.72,20.063]
[1739937567257,82.7,167.75,167.72,20.063]
[1739937567465,90.52801836,167.75,167.72,0.063]
[1739937568156,7.82801836,167.73,167.72,0.063]
[1739937569457,90.52801836,167.73,167.72,0.063]
[1739937571975,82.7,167.73,167.72,0.063]
[1739937572847,4.52,167.74,167.72,0.063]
[1739937573482,82.7,167.76,167.72,0.063]
[1739937573678,7.82801836,167.78,167.72,0.063]
[1739937573855,12.34801836,167.78,167.72,0.063]
[1739937574255,4.52,167.78,167.74,1.5658]
[1739937574564,82.7,167.79,167.74,1.5658]
[1739937574952,82.7,167.79,167.74,9.39381836]
[1739937575157,82.7,167.79,167.75,7.82801836]
[1739937575961,0.03,167.81,167.76,7.82801836]
[1739937576567,0.03,167.81,167.78,7.82801836]
[1739937576771,0.03,167.81,167.8,7.82801836]
[1739937577366,0.03,167.81,167.8,15.82571836]
[1739937578058,0.03,167.81,167.8,21.78511836]
[1739937578382,0.03,167.81,167.8,15.82571836]
[1739937578691,0.03,167.81,167.8,21.78511836]
[1739937580158,0.03,167.81,167.8,15.82571836]
[1739937580672,0.03,167.81,167.8,20.22788801]
[1739937584480,0.03,167.81,167.8,1.6261]
[1739937586169,0.03,167.81,167.8,33.85628801]
[1739937587968,0.03,167.81,167.8,39.81568801]
[1739937588786,86.90775457,167.88,167.8,39.81568801]
[1739937589100,99.13794258,167.88,167.81,12.23018801]
[1739937589797,12.23018801,167.87,167.81,20.0]
[1739937589969,12.23018801,167.86,167.81,20.0]
[1739937592287,82.40775457,167.88,167.83,12.23018801]
[1739937592882,0.03,167.86,167.83,12.23018801]
[1739937594210,0.03,167.86,167.85,12.23018801]
[1739937594501,0.03,167.86,167.85,25.64203654]
[1739937595081,0.03,167.86,167.85,12.23018801]
[1739937596502,0.03,167.86,167.84,12.23018801]
[1739937596677,0.03,167.86,167.83,98.47474632]
[1739937597378,0.03,167.86,167.84,12.23018801]
[1739937598191,0.03,167.86,167.83,98.47474632]
[1739937599495,0.03,167.86,167.83,79.71575831]
[1739937599801,12.23018801,167.85,167.8,1.6891]
[1739937600403,12.23018801,167.85,167.8,0.063]
[1739937602174,94.63794258,167.85,167.8,0.063]
[1739937602799,82.40775457,167.85,167.82,12.23018801]
[1739937603503,82.40775457,167.85,167.83,12.23018801]
[1739937603697,0.03,167.86,167.84,12.23018801]
[1739937603876,0.03,167.86,167.85,12.23018801]
[1739937604787,0.03,167.86,167.85,31.59973654]
[1739937605615,0.03,167.86,167.85,123.54568286]
[1739937605796,0.03,167.86,167.85,124.54568286]
[1739937606000,0.03,167.86,167.85,114.31747132]
[1739937606198,0.03,167.86,167.85,79.71575831]
[1739937606409,0.03,167.86,167.84,13.85298801]
[1739937606578,0.03,167.86,167.82,12.23018801]
[1739937606782,0.03,167.86,167.81,91.94594632]
[1739937607894,12.26018801,167.86,167.81,79.71575831]
[1739937608704,12.26018801,167.86,167.8,12.29318801]
[1739937609005,12.23018801,167.84,167.8,0.063]
[1739937609210,16.73018801,167.84,167.8,0.063]
[1739937609411,4.5,167.84,167.8,12.29318801]
[1739937609612,4.5,167.84,167.81,12.23018801]
[1739937610391,4.5,167.84,167.8,25.70503654]
[1739937611414,4.5,167.84,167.8,0.063]
[1739937612402,94.63794258,167.83,167.8,0.063]
[1739937612711,12.23018801,167.82,167.8,0.063]
[1739937613211,94.63794258,167.82,167.8,0.063]
[1739937613426,94.63794258,167.81,167.8,0.063]
[1739937614113,12.23018801,167.81,167.8,0.063]
[1739937616714,12.23018801,167.82,167.8,0.063]
[1739937617011,32.23018801,167.83,167.8,0.063]
[1739937617203,4.5,167.82,167.8,0.063]
[1739937618382,4.5,167.82,167.8,12.29318801]
[1739937618585,0.03,167.86,167.81,12.23018801]
[1739937618786,0.03,167.86,167.85,12.23018801]
[1739937619019,0.03,167.86,167.85,25.64203654]
[1739937619807,0.03,167.86,167.85,39.49612455]
[1739937620001,0.03,167.86,167.85,33.22363654]
[1739937620218,0.03,167.86,167.85,27.26593654]
[1739937620397,0.03,167.86,167.85,33.22363654]
[1739937623320,0.03,167.86,167.85,45.45382455]
[1739937623902,0.03,167.86,167.85,33.22363654]
[1739937624300,0.03,167.86,167.85,125.16958286]
[1739937625006,0.03,167.86,167.85,112.93939485]
[1739937625694,0.03,167.86,167.85,106.98169485]
[1739937625890,0.03,167.86,167.85,79.71575831]
[1739937626099,0.03,167.86,167.84,12.23018801]
[1739937627208,0.03,167.86,167.85,12.23018801]
[1739937629104,0.03,167.86,167.85,25.64203654]
[1739937629305,0.03,167.86,167.85,31.59973654]
[1739937636935,0.03,167.86,167.85,43.82992455]
[1739937637228,0.03,167.86,167.85,266.32761602]
[1739937637403,0.03,167.86,167.85,265.43438286]
[1739937638410,0.03,167.86,167.85,271.40938286]
[1739937639232,0.03,167.87,167.86,26.64203654]
[1739937639445,0.03,167.87,167.86,27.53517167]
[1739937639816,0.03,167.87,167.86,29.97026275]
[1739937640226,0.03,167.87,167.86,35.92756275]
[1739937640855,0.03,167.87,167.86,34.92756275]
[1739937641015,0.03,167.87,167.86,31.59933654]
[1739937641725,0.03,167.87,167.86,111.31509485]
[1739937641938,0.03,167.87,167.86,112.31509485]
[1739937642139,0.03,167.89,167.88,34.41184853]
[1739937642351,0.03,167.95,167.89,14.41184853]
[1739937642538,0.03,167.95,167.94,25.64203654]
[1739937645683,0.03,167.95,167.92,12.23018801]
[1739937645860,0.03,167.95,167.91,12.23018801]
[1739937646222,0.03,167.95,167.9,13.41184853]
[1739937646441,0.03,167.95,167.87,79.71575831]
[1739937646849,0.03,167.95,167.88,13.41184853]
[1739937647362,0.03,167.95,167.9,12.23018801]
[1739937647535,12.26018801,167.95,167.88,25.64203654]
[1739937647733,12.26018801,167.95,167.89,12.23018801]
[1739937647930,0.03,167.95,167.9,12.23018801]
[1739937648439,0.03,167.95,167.92,12.23018801]
[1739937648649,0.03,167.95,167.93,12.23018801]
[1739937648830,0.03,167.95,167.94,12.23018801]
[1739937649457,0.03,167.95,167.94,25.64203654]
[1739937655853,0.03,167.95,167.94,31.59653654]
[1739937656854,0.03,167.95,167.94,125.43529956]
[1739937657057,0.03,167.95,167.94,124.54248286]
[1739937657456,0.03,167.98,167.97,20.0]
[1739937657761,0.03,167.98,167.97,45.64203654]
[1739937657940,0.03,167.98,167.97,263.65779485]
[1739937658147,0.03,167.98,167.97,264.65779485]
[1739937659627,0.03,167.98,167.97,270.61119485]
[1739937662035,0.03,167.98,167.97,273.63542408]
[1739937664270,0.0001,167.98,167.97,275.17822408]
[1739937664472,0.0001,167.98,167.97,276.17822408]
[1739937664763,0.0001,167.98,167.97,275.17822408]
[1739937667556,0.03,168.0,167.99,1.0]
[1739937667753,0.03,168.01,168.0,13.41184853]
[1739937668169,0.03,168.01,168.0,25.64203654]
[1739937668535,0.03,168.01,168.0,28.02768254]
[1739937671273,0.03,168.01,168.0,33.97998254]
[1739937671440,0.03,168.01,168.0,113.69574085]
[1739937671941,0.03,168.01,168.0,107.74344085]
[1739937672146,0.03,168.01,168.0,82.10140431]
[1739937672365,0.03,168.01,168.0,79.71575831]
[1739937673941,0.03,168.01,168.0,91.94594632]
[1739937674150,0.03,168.01,168.0,79.71575831]
[1739937674655,0.03,168.01,168.0,91.94594632]
[1739937674974,0.03,168.01,168.0,105.35779485]
[1739937676996,0.03,168.01,168.0,12.23018801]
[1739937677212,0.03,168.01,167.99,12.23018801]
[1739937680681,0.03,168.01,168.0,12.23018801]
[1739937681185,0.03,168.01,167.99,12.23018801]
[1739937683182,0.03,168.01,168.0,12.23018801]
[1739937683906,0.03,168.01,168.0,25.64203654]
[1739937688101,0.03,168.01,167.97,15.25441724]
[1739937688704,0.03,168.01,167.98,13.41184853]
[1739937689013,0.03,168.01,167.98,21.22498348]
[1739937694033,0.00263474,168.01,167.98,21.22498348]
[1739937695128,0.00263474,168.01,168.0,13.41184853]
[1739937695301,0.00263474,168.01,168.0,21.22498348]
[1739937696125,0.00263474,168.01,168.0,22.84148348]
[1739937696291,0.00263474,168.01,168.0,240.85724179]
[1739937697332,0.00263474,168.01,168.0,246.80954179]
[1739937699102,0.00263474,168.01,168.0,247.80954179]
[1739937699305,0.00263474,168.01,168.0,246.80954179]
[1739937699996,0.00263474,168.01,168.0,252.78454179]
[1739937700196,0.00263474,168.01,168.0,106.89304179]
[1739937700422,0.00263474,168.01,168.0,21.22498348]
[1739937700626,0.00263474,168.01,167.98,85.66855831]
[1739937700627,0.00263474,168.01,167.99,7.81313495]
[1739937701225,0.00263474,168.01,168.0,7.81313495]
[1739937702216,0.00263474,168.01,168.0,27.17728348]
[1739937702615,0.00263474,168.01,168.0,31.56197463]
[1739937705925,0.00263474,168.01,168.0,25.60967463]
[1739937706616,0.00263474,168.01,168.0,13.41184853]
[1739937708414,0.00263474,168.01,167.99,12.1978261]
[1739937708616,0.00263474,168.01,167.98,12.2608261]
[1739937708922,0.00263474,168.01,167.99,13.41184853]
[1739937709436,0.00263474,168.01,167.99,26.65792063]
[1739937709618,0.00263474,168.01,168.0,12.1978261]
[1739937713521,0.00263474,168.01,168.0,12.2608261]
[1739937717621,0.00263474,168.01,168.0,0.063]
[1739937717826,0.00263474,168.01,168.0,12.2608261]
[1739937720431,0.00263474,168.01,168.0,0.063]
[1739937724464,13.83856084,168.01,168.0,0.063]
[1739937724642,13.95836553,168.01,168.0,0.063]
[1739937724965,15.95836553,168.01,168.0,0.063]
[1739937725268,15.95836553,168.01,167.9,7.81763079]
[1739937725269,7.81763079,167.96,167.9,7.81763079]
[1739937725646,7.81763079,167.97,167.9,7.81763079]
[1739937725844,7.81763079,167.97,167.91,7.81763079]
[1739937726165,90.51763079,167.99,167.93,7.81763079]
[1739937726371,7.81763079,167.98,167.92,7.81763079]
[1739937726763,82.7,167.99,167.92,7.81763079]
[1739937726970,7.81763079,167.98,167.92,7.81763079]
[1739937728271,82.7,167.99,167.94,7.81763079]
[1739937728440,82.70263474,168.01,167.97,7.81763079]
[1739937728943,0.00263474,168.01,167.97,7.81763079]
[1739937729778,7.81763079,167.99,167.93,87.5333891]
[1739937730081,7.81763079,167.94,167.88,8.55115319]
[1739937730384,7.81763079,167.91,167.88,0.7335224]
[1739937730556,83.7,167.94,167.88,0.7335224]
[1739937730942,7.81763079,167.9,167.88,0.7335224]
[1739937731539,7.81763079,167.89,167.88,0.7335224]
[1739937731738,8.81763079,167.89,167.88,0.7335224]
[1739937732671,12.23312861,167.89,167.88,0.7335224]
[1739937733353,16.73312861,167.9,167.88,0.7335224]
[1739937733863,4.5,167.9,167.88,0.7335224]
[1739937734066,16.73312861,167.93,167.88,0.7335224]
[1739937734371,4.5,167.93,167.88,12.96665101]
[1739937734940,16.73312861,167.93,167.88,0.7335224]
[1739937735144,12.23312861,167.9,167.88,0.7335224]
[1739937735462,12.23312861,167.89,167.88,0.7335224]
[1739937735970,94.93312861,167.89,167.88,0.7335224]
[1739937736783,95.93312861,167.89,167.88,0.7335224]
[1739937737741,82.7,167.89,167.88,0.7335224]
[1739937740983,82.7,167.89,167.88,12.96665101]
[1739937741283,82.7,167.95,167.88,18.92305101]
[1739937741446,4.5,167.95,167.91,12.23312861]
[1739937741648,87.2,167.97,167.92,12.23312861]
[1739937741868,87.2,167.97,167.93,12.23312861]
[1739937742067,87.2,167.97,167.94,12.23312861]
[1739937743947,87.2,167.97,167.93,12.23312861]
[1739937744183,99.43312861,167.97,167.91,12.23312861]
[1739937744886,87.2,167.97,167.93,12.23312861]
[1739937745054,87.2,167.97,167.94,12.23312861]
[1739937745571,4.5,167.97,167.94,12.23312861]
[1739937746954,4.5,167.97,167.91,12.23312861]
[1739937747355,4.5,167.97,167.92,12.23312861]
[1739937747757,4.5,167.97,167.93,12.23312861]
[1739937750078,16.76312861,167.97,167.91,12.23312861]
[1739937750383,16.76312861,167.97,167.9,91.94888692]
[1739937751671,82.7,167.96,167.9,12.23312861]
[1739937752178,82.7,167.96,167.93,12.23312861]
[1739937752872,82.7,167.96,167.94,12.23312861]
[1739937753074,82.7,167.96,167.95,12.23312861]
[1739937753280,0.03,167.97,167.95,12.23312861]
[1739937753469,0.03,167.97,167.96,12.23312861]
[1739937754788,0.03,167.97,167.94,12.23312861]
[1739937755167,0.03,167.97,167.95,12.23312861]
[1739937755360,0.03,167.97,167.96,12.23312861]
[1739937757704,0.03,167.97,167.94,12.23312861]
[1739937758004,0.03,167.97,167.93,12.23312861]
[1739937758368,12.26312861,167.97,167.91,231.43312861]
[1739937758673,12.26312861,167.97,167.9,12.23312861]
[1739937759288,32.23312861,167.96,167.89,12.23312861]
[1739937759497,32.23312861,167.96,167.9,12.23312861]
[1739937759700,36.73312861,167.96,167.9,12.23312861]
[1739937761372,36.73312861,167.96,167.89,12.23312861]
[1739937761790,36.73312861,167.96,167.9,0.063]
[1739937761975,12.23312861,167.95,167.9,0.063]
[1739937763403,94.93312861,167.94,167.9,0.063]
[1739937763604,82.7,167.93,167.9,0.063]
[1739937763783,32.23312861,167.91,167.9,0.063]
[1739937774401,33.23312861,167.91,167.9,0.063]
[1739937776922,32.23312861,167.91,167.9,0.063]
[1739937777723,36.73312861,167.91,167.9,0.063]
[1739937781008,37.73312861,167.91,167.9,0.063]
[1739937781931,36.73312861,167.91,167.9,0.063]
[1739937782728,37.73312861,167.91,167.9,0.063]
[1739937783133,36.73312861,167.91,167.9,0.063]
[1739937784612,37.73312861,167.91,167.9,0.063]
[1739937785331,36.73312861,167.91,167.9,0.063]
[1739937787024,37.73312861,167.91,167.9,0.063]
[1739937788429,36.73312861,167.91,167.9,0.063]
[1739937788935,37.73312861,167.91,167.9,0.063]
[1739937794316,21.0,167.87,167.85,0.86084472]
[1739937794539,20.0,167.84,167.83,0.063]
[1739937794741,36.73312861,167.84,167.83,0.063]
[1739937795738,94.93312861,167.86,167.83,0.063]
[1739937795921,94.93312861,167.89,167.83,0.063]
[1739937796123,94.93312861,167.89,167.85,18.51512861]
[1739937796124,82.7,167.89,167.85,18.51512861]
[1739937796345,82.7,167.89,167.86,1.5007]
[1739937798437,82.7,167.89,167.86,13.73382861]
[1739937798625,87.2,167.91,167.86,13.73382861]
[1739937799025,87.2,167.91,167.87,13.41184853]
[1739937799530,99.43312861,167.91,167.87,13.41184853]
[1739937800750,0.03,167.89,167.87,13.41184853]
[1739937802559,32.23312861,167.88,167.85,0.063]
[1739937804768,12.23312861,167.86,167.85,0.063]
[1739937806068,94.93312861,167.87,167.85,0.063]
[1739937806667,82.7,167.87,167.85,13.47484853]
[1739937806840,0.03,167.89,167.86,25.64497714]
[1739937807039,0.03,167.89,167.87,12.23312861]
[1739937807258,0.03,167.89,167.86,25.64497714]
[1739937807839,0.03,167.89,167.86,13.41184853]
[1739937808472,0.03,167.89,167.87,13.41184853]
[1739937809368,0.03,167.89,167.85,12.29612861]
[1739937809674,12.23312861,167.86,167.85,0.063]
[1739937810178,16.73312861,167.86,167.85,0.063]
[1739937811373,4.5,167.86,167.85,0.063]
[1739937812072,16.73312861,167.86,167.85,0.063]
[1739937812656,4.5,167.86,167.85,0.063]
[1739937819675,87.2,167.87,167.85,0.063]
[1739937823407,99.46312861,167.87,167.85,0.063]
[1739937824053,87.23,167.87,167.85,0.063]
[1739937827997,12.23312861,167.86,167.85,0.063]
[1739937829106,13.23312861,167.86,167.85,0.063]
[1739937829788,15.66150676,167.86,167.85,0.063]
[1739937829972,13.23312861,167.86,167.85,0.063]
[1739937830695,12.23312861,167.86,167.85,0.063]
[1739937830884,99.46312861,167.87,167.85,0.063]
[1739937831408,94.96312861,167.87,167.85,0.063]
[1739937831704,4.5,167.86,167.85,0.063]
[1739937832086,0.03,167.87,167.85,13.47484853]
[1739937832402,0.03,167.87,167.86,25.64497714]
[1739937833109,0.03,167.87,167.86,13.41184853]
[1739937836180,0.03,167.87,167.86,25.64497714]
[1739937836508,0.20545456,167.88,167.87,15.03104853]
[1739937836699,0.20545456,167.88,167.87,27.26417714]
[1739937838284,0.20545456,167.88,167.87,33.22107714]
[1739937839399,0.20545456,167.88,167.87,27.26417714]
[1739937840010,0.20545456,167.88,167.87,15.03104853]
[1739937840477,0.20545456,167.88,167.87,27.26417714]
[1739937840887,0.20545456,167.88,167.87,33.22107714]
[1739937841117,0.20545456,167.88,167.87,27.26417714]
[1739937841605,0.20545456,167.88,167.87,15.03104853]
[1739937841815,0.20545456,167.88,167.87,13.41184853]
[1739937844682,0.20545456,167.88,167.85,0.063]
[1739937845006,12.43858317,167.88,167.85,0.063]
[1739937845186,95.13858317,167.88,167.85,0.063]
[1739937845696,12.23312861,167.87,167.85,0.063]
[1739937845940,94.93312861,167.87,167.85,0.063]
[1739937846416,94.93312861,167.86,167.85,0.063]
[1739937846712,12.23312861,167.86,167.85,0.063]
[1739937846895,13.23312861,167.86,167.85,0.063]
[1739937850307,26.46625722,167.86,167.85,0.063]
[1739937850610,29.39671859,167.86,167.85,0.063]
[1739937850812,17.16358998,167.86,167.85,0.063]
[1739937853917,16.16358998,167.86,167.85,0.063]
[1739937854098,15.16358998,167.86,167.85,0.063]
[1739937854300,4.5,167.86,167.85,0.063]
[1739937855519,4.5,167.87,167.85,0.063]
[1739937855693,0.23545456,167.88,167.86,13.41184853]
[1739937857605,0.23545456,167.88,167.86,12.23312861]
[1739937857799,0.23545456,167.88,167.87,25.64497714]
[1739937857999,0.23545456,167.88,167.87,33.49257714]
[1739937858316,0.03,167.89,167.88,13.41184853]
[1739937858512,0.03,167.89,167.88,25.64497714]
[1739937859020,0.03,167.89,167.88,31.60157714]
[1739937859399,0.03,167.89,167.88,25.64497714]
[1739937859607,0.03,167.89,167.88,13.41184853]
[1739937859807,0.03,167.89,167.87,20.08072861]
[1739937860005,0.03,167.89,167.87,7.8476]
[1739937860699,0.03,167.89,167.86,0.063]
[1739937861109,12.26312861,167.89,167.86,0.063]
[1739937861716,0.03,167.89,167.86,0.063]
[1739937862023,0.03,167.89,167.86,13.47484853]
[1739937863325,0.03,167.89,167.87,12.23312861]
[1739937863624,0.03,167.89,167.86,0.063]
[1739937863625,0.03,167.89,167.88,25.64497714]
[1739937863921,0.03,167.89,167.88,13.41184853]
[1739937864118,0.03,167.89,167.86,0.063]
[1739937864333,0.03,167.89,167.87,12.23312861]
[1739937864504,0.03,167.89,167.88,12.23312861]
[1739937864717,0.03,167.89,167.88,13.41184853]
[1739937865738,0.03,167.89,167.88,25.64497714]
[1739937865923,0.03,167.89,167.88,31.60157714]
[1739937866116,0.03,167.89,167.88,27.24247714]
[1739937866337,0.03,167.89,167.88,15.00934853]
[1739937866837,0.03,167.89,167.88,27.24247714]
[1739937867039,0.03,167.89,167.88,33.19907714]
[1739937867536,0.03,167.89,167.88,27.24247714]
[1739937868237,0.03,167.89,167.88,13.41184853]
[1739937872445,0.03,167.89,167.88,25.64497714]
[1739937872949,0.03,167.89,167.88,31.60157714]
[1739937873749,0.03,167.89,167.88,25.61765543]
[1739937875242,0.03,167.89,167.88,31.57425543]
[1739937877031,0.03,167.89,167.88,25.61765543]
[1739937877725,0.03,167.89,167.88,31.57425543]
[1739937878236,0.03,167.89,167.88,25.61765543]
[1739937878754,0.03,167.89,167.88,31.57425543]
[1739937879245,0.03,167.89,167.88,39.82375543]
[1739937880921,0.03,167.89,167.88,120.72375543]
[1739937883432,0.03,167.89,167.88,120.78675543]
[1739937883952,0.03,167.89,167.88,123.17429743]
[1739937887957,0.03,167.89,167.88,117.21769743]
[1739937888123,0.03,167.89,167.88,123.17429743]
[1739937888448,0.03,167.89,167.88,120.78675543]
[1739937888747,0.03,167.89,167.88,123.17430743]
[1739937895980,0.03,167.89,167.88,120.78675543]
[1739937898731,0.03,167.89,167.88,116.37108886]
[1739937900859,1.0441144,167.92,167.91,41.22931057]
[1739937901033,1.0441144,167.92,167.91,122.12931057]
[1739937902060,1.0441144,167.92,167.91,102.12931057]
[1739937902484,1.0441144,167.92,167.91,21.22931057]
[1739937904057,1.0441144,167.92,167.91,41.22931057]
[1739937904662,1.0441144,167.92,167.91,33.41184853]
[1739937904963,1.0441144,167.92,167.91,41.22931057]
[1739937905153,1.0441144,167.92,167.91,47.18481057]
[1739937905680,1.0441144,167.92,167.91,128.08481057]
[1739937905867,1.0441144,167.92,167.91,108.08481057]
[1739937906969,1.0441144,167.92,167.91,111.07723495]
[1739937907384,0.03,167.95,167.94,20.0]
[1739937907557,0.03,167.95,167.94,299.43825873]
[1739937908588,0.03,167.96,167.95,13.41184853]
[1739937908757,0.03,167.96,167.95,284.13607617]
[1739937909080,0.03,167.97,167.95,284.24341057]
[1739937909294,0.00263474,168.01,167.99,56.86]
[1739937909458,0.81585819,168.03,168.01,39.55954853]
[1739937909459,0.01,168.02,168.01,39.55954853]
[1739937909659,0.80585819,168.03,168.02,13.41184853]
[1739937909890,0.80585819,168.03,168.02,52.49915873]
[1739937910078,0.80585819,168.03,168.02,133.39915873]
[1739937910861,0.80585819,168.03,168.02,139.35075873]
[1739937911786,0.80585819,168.03,168.02,108.08091057]
[1739937912092,0.80585819,168.03,168.02,21.22931057]
[1739937912396,0.80585819,168.03,167.99,88.71746204]
[1739937912562,12.21080687,168.01,167.94,80.9]
[1739937913083,12.21080687,168.0,167.94,12.21080687]
[1739937913291,16.69080687,168.0,167.94,12.21080687]
[1739937913511,12.21080687,167.98,167.92,12.21080687]
[1739937913792,1.5377,167.99,167.94,25.6226554]
[1739937914089,13.74850687,167.99,167.94,13.41184853]
[1739937914792,12.21080687,167.98,167.94,13.41184853]
[1739937914993,1.5377,167.99,167.94,13.41184853]
[1739937915296,1.5377,167.99,167.94,25.6226554]
[1739937915797,12.21080687,167.98,167.92,12.21080687]
[1739937915979,12.21080687,167.97,167.91,12.21080687]
[1739937916170,94.91080687,167.98,167.91,12.21080687]
[1739937918004,12.21080687,167.96,167.9,25.6226554]
[1739937918596,12.21080687,167.97,167.91,12.21080687]
[1739937919497,82.73,167.98,167.91,12.21080687]
[1739937919498,94.94080687,167.98,167.91,12.21080687]
[1739937920103,82.73,167.98,167.93,25.6226554]
[1739937920408,82.73,167.98,167.93,13.41184853]
[1739937921399,94.94080687,167.98,167.91,12.21080687]
[1739937921608,12.21080687,167.97,167.91,12.21080687]
[1739937922693,12.21080687,167.95,167.89,12.27380687]
[1739937922997,4.5,167.94,167.9,13.41184853]
[1739937923302,4.5,167.94,167.9,25.6226554]
[1739937924097,4.5,167.94,167.92,13.41184853]
[1739937924413,4.53,167.98,167.93,12.21080687]
[1739937924608,16.74080687,167.98,167.94,13.41184853]
[1739937924901,16.74080687,167.98,167.92,12.21080687]
[1739937925806,4.53,167.98,167.94,12.21080687]
[1739937925975,4.53,167.98,167.95,12.21080687]
[1739937926176,4.53,167.98,167.96,13.41184853]
[1739937926376,4.53,167.98,167.96,25.6226554]
[1739937926912,0.03,167.98,167.96,13.41184853]
[1739937928008,0.03,167.98,167.97,25.6226554]
[1739937928399,0.03,167.98,167.97,13.41184853]
[1739937929412,0.03,167.98,167.97,25.6226554]
[1739937929791,0.03,167.98,167.97,31.5760554]
[1739937930612,0.03,167.98,167.97,25.6226554]
[1739937934904,0.03,167.98,167.97,31.5760554]
[1739937938195,0.03,167.98,167.97,33.2292554]
[1739937938688,0.03,167.98,167.97,39.4587554]
[1739937939007,0.0001,167.98,167.97,76.3187554]
[1739937939191,0.03,168.02,168.01,33.41184853]
[1739937939395,0.03,168.02,168.01,45.6226554]
[1739937939984,0.03,168.02,168.01,126.5226554]
[1739937941601,0.03,168.02,168.01,132.4746554]
[1739937943617,0.03,168.02,168.01,135.43314811]
[1739937956645,0.03,168.02,168.01,131.02897343]
[1739937957740,0.03,168.02,168.01,111.02897343]
[1739937958046,0.03,168.02,168.01,102.11848072]
[1739937958747,0.03,168.02,168.01,108.07048072]
[1739937960139,0.03,168.02,168.01,102.11848072]
[1739937960637,0.03,168.02,168.01,13.41184853]
[1739937961049,0.03,168.02,168.01,21.21848072]
[1739937962242,0.03,168.02,168.01,13.41184853]
[1739937962934,0.03,168.02,168.01,12.91184853]
[1739937963629,0.03,168.02,168.01,20.71848072]
[1739937963824,0.03,168.02,168.01,26.67048072]
[1739937965953,0.03,168.02,168.01,20.71848072]
[1739937966130,0.03,168.02,168.01,12.91184853]
[1739937966433,0.03,168.02,168.01,20.71848072]
[1739937967134,0.03,168.02,168.01,12.91184853]
[1739937967328,0.03,168.02,167.98,7.86963219]
[1739937967633,0.03,168.02,167.98,0.063]
[1739937967634,94.98663219,168.01,167.98,0.063]
[1739937967838,90.50663219,168.0,167.98,0.063]
[1739937968151,7.80663219,167.99,167.98,0.063]
[1739937968324,82.7,168.0,167.98,0.063]
[1739937968325,90.50663219,168.0,167.98,0.063]
[1739937968519,82.7,168.0,167.98,7.86963219]
[1739937968722,82.7,168.0,167.98,12.26953909]
[1739937968925,82.7,168.0,167.99,12.20653909]
[1739937969123,82.7,168.0,167.98,0.063]
[1739937970023,94.90653909,168.0,167.98,0.063]